[Event "Titled Tuesday Blitz August 16 Late 2022"]
[White "Bashirli, Nail"]
[Black "Wadsworth, Matthew J"]
[WhiteFideId "13406809"]
[BlackFideId "415804"]
[WhiteElo "2333"]
[BlackElo "2294"]
[Result "0-1"]
[Round "04"]
[TimeControl "180+1"]
[Date "2022.08.18"]
[WhiteClock "0:00:00"]
[BlackClock "0:00:00"]

1. e4 {[%clk 0:00:00]}  c5 {[%clk 0:00:00]} 2. Nc3 {[%clk 0:00:00]}  e6 {[%clk 0:00:00]} 3. f4 {[%clk 0:00:00]}  Nc6 {[%clk 0:00:00]} 4. g3 {[%clk 0:00:00]}  d5 {[%clk 0:00:00]} 5. Bg2 {[%clk 0:00:00]}  d4 {[%clk 0:00:00]} 6. Nce2 {[%clk 0:00:00]}  d3 {[%clk 0:00:00]} 7. cxd3 {[%clk 0:00:00]}  Nb4 {[%clk 0:00:00]} 8. Nf3 {[%clk 0:00:00]}  Nxd3+ {[%clk 0:00:00]} 9. Kf1 {[%clk 0:00:00]}  Nf6 {[%clk 0:00:00]} 10. e5 {[%clk 0:00:00]}  Ng4 {[%clk 0:00:00]} 11. Ne1 {[%clk 0:00:00]}  Ngf2 {[%clk 0:00:00]} 12. Qa4+ {[%clk 0:00:00]}  Bd7 {[%clk 0:00:00]} 13. Qc4 {[%clk 0:00:00]}  Nxe1 {[%clk 0:00:00]} 14. Kxe1 {[%clk 0:00:00]}  Nxh1 {[%clk 0:00:00]} 15. Bxh1 {[%clk 0:00:00]}  Bc6 {[%clk 0:00:00]} 16. Bxc6+ {[%clk 0:00:00]}  bxc6 {[%clk 0:00:00]} 17. d3 {[%clk 0:00:00]}  Be7 {[%clk 0:00:00]} 18. Be3 {[%clk 0:00:00]}  O-O {[%clk 0:00:00]} 19. Nc3 {[%clk 0:00:00]}  Qa5 {[%clk 0:00:00]} 20. Bd2 {[%clk 0:00:00]}  Rab8 {[%clk 0:00:00]} 21. Na4 {[%clk 0:00:00]}  Qb5 {[%clk 0:00:00]} 22. Rc1 {[%clk 0:00:00]}  Rfd8 {[%clk 0:00:00]} 23. Ke2 {[%clk 0:00:00]}  Rd5 {[%clk 0:00:00]} 24. Rc2 {[%clk 0:00:00]}  Qb7 {[%clk 0:00:00]} 25. Be3 {[%clk 0:00:00]}  Rbd8 {[%clk 0:00:00]} 26. Rd2 {[%clk 0:00:00]}  h6 {[%clk 0:00:00]} 27. Nc3 {[%clk 0:00:00]}  R5d7 {[%clk 0:00:00]} 28. Ne4 {[%clk 0:00:00]}  Qb6 {[%clk 0:00:00]} 29. b3 {[%clk 0:00:00]}  Qa5 {[%clk 0:00:00]} 30. Bxc5 {[%clk 0:00:00]}  Bxc5 {[%clk 0:00:00]} 31. Qxc5 {[%clk 0:00:00]}  Qa6 {[%clk 0:00:00]} 32. Qc4 {[%clk 0:00:00]}  Qb6 {[%clk 0:00:00]} 33. Qc5 {[%clk 0:00:00]}  Rd5 {[%clk 0:00:00]} 34. Qxb6 {[%clk 0:00:00]}  axb6 {[%clk 0:00:00]} 35. Nc3 {[%clk 0:00:00]}  Ra5 {[%clk 0:00:00]} 36. a4 {[%clk 0:00:00]}  Rd4 {[%clk 0:00:00]} 37. Rb2 {[%clk 0:00:00]}  Rc5 {[%clk 0:00:00]} 38. Ke3 {[%clk 0:00:00]}  Rd8 {[%clk 0:00:00]} 39. Rc2 {[%clk 0:00:00]}  Ra5 {[%clk 0:00:00]} 40. b4 {[%clk 0:00:00]}  Ra7 {[%clk 0:00:00]} 41. Ra2 {[%clk 0:00:00]}  Rad7 {[%clk 0:00:00]} 42. Rd2 {[%clk 0:00:00]}  Rd4 {[%clk 0:00:00]} 43. b5 {[%clk 0:00:00]}  c5 {[%clk 0:00:00]} 44. Ne4 {[%clk 0:00:00]}  Rxa4 {[%clk 0:00:00]} 45. Nd6 {[%clk 0:00:00]}  f6 {[%clk 0:00:00]} 46. h4 {[%clk 0:00:00]}  fxe5 {[%clk 0:00:00]} 47. fxe5 {[%clk 0:00:00]}  Ra3 {[%clk 0:00:00]} 48. g4 {[%clk 0:00:00]}  Rf8 {[%clk 0:00:00]} 49. g5 {[%clk 0:00:00]}  hxg5 {[%clk 0:00:00]} 50. hxg5 {[%clk 0:00:00]}  Kh7 {[%clk 0:00:00]} 51. Nc4 {[%clk 0:00:00]}  Rb3 {[%clk 0:00:00]} 52. Ke4 {[%clk 0:00:00]}  Rxb5 {[%clk 0:00:00]} 53. Rg2 {[%clk 0:00:00]}  Kg6 {[%clk 0:00:00]} 54. Ke3 {[%clk 0:00:00]}  Rb3 {[%clk 0:00:00]} 55. Nd6 {[%clk 0:00:00]}  b5 {[%clk 0:00:00]} 56. Ke4 {[%clk 0:00:00]}  c4 {[%clk 0:00:00]} 57. dxc4 {[%clk 0:00:00]}  bxc4 {[%clk 0:00:00]} 58. Nxc4 {[%clk 0:00:00]}  Rb4 {[%clk 0:00:00]} 59. Kd3 {[%clk 0:00:00]}  Rf3+ {[%clk 0:00:00]} 60. Ke2 {[%clk 0:00:00]}  Rfb3 {[%clk 0:00:00]} 61. Nd2 {[%clk 0:00:00]}  Rb2 {[%clk 0:00:00]} 62. Kd3 {[%clk 0:00:00]}  Rb5 {[%clk 0:00:00]} 63. Kc3 {[%clk 0:00:00]}  Ra2 {[%clk 0:00:00]} 64. Rg4 {[%clk 0:00:00]}  Rc5+ {[%clk 0:00:00]} 65. Kb4 {[%clk 0:00:00]}  Rd5 {[%clk 0:00:00]} 66. Nf3 {[%clk 0:00:00]}  Rb2+ {[%clk 0:00:00]} 67. Ka3 {[%clk 0:00:00]}  Rf2 {[%clk 0:00:00]} 68. Nd4 {[%clk 0:00:00]}  Kh5 {[%clk 0:00:00]} 69. Rg1 {[%clk 0:00:00]}  Rxe5 {[%clk 0:00:00]} 70. Rh1+ {[%clk 0:00:00]}  Kg6 {[%clk 0:00:00]} 71. Nb3 {[%clk 0:00:00]}  Re3 {[%clk 0:00:00]} 72. Ka4 {[%clk 0:00:00]}  Rf4+ {[%clk 0:00:00]} 73. Ka3 {[%clk 0:00:00]}  Rff3 {[%clk 0:00:00]} 74. Rb1 {[%clk 0:00:00]}  Rxb3+ {[%clk 0:00:00]} 75. Rxb3 {[%clk 0:00:00]}  Rxb3+ {[%clk 0:00:00]} 76. Kxb3 {[%clk 0:00:00]}  Kxg5 {[%clk 0:00:00]} 77. Kc3 {[%clk 0:00:00]}  Kf4 {[%clk 0:00:00]} 78. Kd3 {[%clk 0:00:00]}  Kf3 {[%clk 0:00:00]} 79. Kd4 {[%clk 0:00:00]}  g5 {[%clk 0:00:00]} 80. Ke5 {[%clk 0:00:00]}  g4 {[%clk 0:00:00]} 81. Kxe6 {[%clk 0:00:00]}  g3 {[%clk 0:00:00]} 0-1


[Site "https://www.chess.com"]

[Event "Titled Tuesday Blitz August 16 Late 2022"]
[White "Belenkaya, Dina"]
[Black "Barria Zuniga, Daniel"]
[WhiteFideId "24142654"]
[BlackFideId "3400816"]
[WhiteElo "2196"]
[BlackElo "2414"]
[Result "1-0"]
[Round "04"]
[TimeControl "180+1"]
[Date "2022.08.18"]
[WhiteClock "0:00:00"]
[BlackClock "0:00:00"]

1. Nf3 {[%clk 0:00:00]}  Nf6 {[%clk 0:00:00]} 2. g3 {[%clk 0:00:00]}  d6 {[%clk 0:00:00]} 3. Bg2 {[%clk 0:00:00]}  h6 {[%clk 0:00:00]} 4. O-O {[%clk 0:00:00]}  Bf5 {[%clk 0:00:00]} 5. d3 {[%clk 0:00:00]}  Bh7 {[%clk 0:00:00]} 6. e4 {[%clk 0:00:00]}  e6 {[%clk 0:00:00]} 7. Re1 {[%clk 0:00:00]}  Be7 {[%clk 0:00:00]} 8. b3 {[%clk 0:00:00]}  O-O {[%clk 0:00:00]} 9. Bb2 {[%clk 0:00:00]}  e5 {[%clk 0:00:00]} 10. Nbd2 {[%clk 0:00:00]}  Nbd7 {[%clk 0:00:00]} 11. Nh4 {[%clk 0:00:00]}  Re8 {[%clk 0:00:00]} 12. f4 {[%clk 0:00:00]}  Bf8 {[%clk 0:00:00]} 13. f5 {[%clk 0:00:00]}  c6 {[%clk 0:00:00]} 14. Nc4 {[%clk 0:00:00]}  d5 {[%clk 0:00:00]} 15. exd5 {[%clk 0:00:00]}  cxd5 {[%clk 0:00:00]} 16. Nxe5 {[%clk 0:00:00]}  Nxe5 {[%clk 0:00:00]} 17. Bxe5 {[%clk 0:00:00]}  Qb6+ {[%clk 0:00:00]} 18. Kh1 {[%clk 0:00:00]}  Bb4 {[%clk 0:00:00]} 19. c3 {[%clk 0:00:00]}  Rxe5 {[%clk 0:00:00]} 20. Rxe5 {[%clk 0:00:00]}  Bxc3 {[%clk 0:00:00]} 21. Re7 {[%clk 0:00:00]}  Bxa1 {[%clk 0:00:00]} 22. Qxa1 {[%clk 0:00:00]}  Rc8 {[%clk 0:00:00]} 23. Qe1 {[%clk 0:00:00]}  Kf8 {[%clk 0:00:00]} 24. h3 {[%clk 0:00:00]}  Qd6 {[%clk 0:00:00]} 25. Rxb7 {[%clk 0:00:00]}  Re8 {[%clk 0:00:00]} 26. Qf2 {[%clk 0:00:00]}  d4 {[%clk 0:00:00]} 27. Rxa7 {[%clk 0:00:00]}  Re3 {[%clk 0:00:00]} 28. Ra8+ {[%clk 0:00:00]}  Ke7 {[%clk 0:00:00]} 29. Ra7+ {[%clk 0:00:00]}  Kf8 {[%clk 0:00:00]} 30. Ra8+ {[%clk 0:00:00]}  Ke7 {[%clk 0:00:00]} 31. Kh2 {[%clk 0:00:00]}  Nh5 {[%clk 0:00:00]} 32. Bf3 {[%clk 0:00:00]}  g6 {[%clk 0:00:00]} 33. Ra7+ {[%clk 0:00:00]}  Ke8 {[%clk 0:00:00]} 34. Bxh5 {[%clk 0:00:00]}  gxh5 {[%clk 0:00:00]} 35. Ra8+ {[%clk 0:00:00]}  Ke7 {[%clk 0:00:00]} 36. Qg2 {[%clk 0:00:00]}  Qc7 {[%clk 0:00:00]} 37. Nf3 {[%clk 0:00:00]}  Bxf5 {[%clk 0:00:00]} 38. Nxd4 {[%clk 0:00:00]}  Bd7 {[%clk 0:00:00]} 39. Qf2 {[%clk 0:00:00]}  Rxd3 {[%clk 0:00:00]} 40. Qe2+ {[%clk 0:00:00]}  Kf6 {[%clk 0:00:00]} 41. Qxd3 {[%clk 0:00:00]}  h4 {[%clk 0:00:00]} 42. Qf3+ {[%clk 0:00:00]}  Kg7 {[%clk 0:00:00]} 43. Ne2 {[%clk 0:00:00]}  Bc6 {[%clk 0:00:00]} 44. Qg4+ {[%clk 0:00:00]}  Kh7 {[%clk 0:00:00]} 45. Qg8# {[%clk 0:00:00]} 1-0


[Site "https://www.chess.com"]

[Event "Titled Tuesday Blitz August 16 Late 2022"]
[White "Bilych, Olexiy"]
[Black "Do Nascimento,Christian Almeida"]
[WhiteFideId "14156504"]
[BlackFideId "2143801"]
[WhiteElo "2157"]
[BlackElo "2085"]
[Result "1-0"]
[Round "04"]
[TimeControl "180+1"]
[Date "2022.08.16"]
[WhiteClock "0:00:06"]
[BlackClock "0:00:01"]

1. e4 {[%clk 0:03:00]}  c5 {[%clk 0:02:56]} 2. Nf3 {[%clk 0:03:01]}  d6 {[%clk 0:02:53]} 3. d4 {[%clk 0:03:01]}  cxd4 {[%clk 0:02:54]} 4. Nxd4 {[%clk 0:03:02]}  Nf6 {[%clk 0:02:55]} 5. Nc3 {[%clk 0:03:02]}  a6 {[%clk 0:02:55]} 6. Bg5 {[%clk 0:03:03]}  e6 {[%clk 0:02:55]} 7. f4 {[%clk 0:03:03]}  Be7 {[%clk 0:02:55]} 8. Qf3 {[%clk 0:03:04]}  Qc7 {[%clk 0:02:53]} 9. O-O-O {[%clk 0:03:04]}  Nbd7 {[%clk 0:02:51]} 10. g4 {[%clk 0:03:04]}  b5 {[%clk 0:02:51]} 11. Bxf6 {[%clk 0:03:04]}  Nxf6 {[%clk 0:02:50]} 12. g5 {[%clk 0:03:04]}  Nd7 {[%clk 0:02:50]} 13. f5 {[%clk 0:03:04]}  Ne5 {[%clk 0:02:49]} 14. Qg3 {[%clk 0:02:24]}  Bd7 {[%clk 0:02:39]} 15. Bh3 {[%clk 0:02:09]}  b4 {[%clk 0:02:36]} 16. Nce2 {[%clk 0:02:03]}  Rc8 {[%clk 0:02:18]} 17. Nf4 {[%clk 0:01:58]}  O-O {[%clk 0:01:27]} 18. fxe6 {[%clk 0:01:53]}  fxe6 {[%clk 0:01:19]} 19. Bxe6+ {[%clk 0:01:29]}  Kh8 {[%clk 0:01:15]} 20. Bb3 {[%clk 0:01:25]}  a5 {[%clk 0:01:07]} 21. Nfe6 {[%clk 0:01:13]}  Qb6 {[%clk 0:00:47]} 22. Nxf8 {[%clk 0:01:11]}  Bxf8 {[%clk 0:00:39]} 23. Rhf1 {[%clk 0:00:53]}  a4 {[%clk 0:00:39]} 24. Bd5 {[%clk 0:00:52]}  Be7 {[%clk 0:00:26]} 25. Kb1 {[%clk 0:00:40]}  Qc5 {[%clk 0:00:23]} 26. h4 {[%clk 0:00:34]}  Bg4 {[%clk 0:00:20]} 27. Rd2 {[%clk 0:00:32]}  Bd7 {[%clk 0:00:12]} 28. Nf3 {[%clk 0:00:30]}  Qb5 {[%clk 0:00:10]} 29. Rdd1 {[%clk 0:00:20]}  b3 {[%clk 0:00:09]} 30. cxb3 {[%clk 0:00:18]}  axb3 {[%clk 0:00:09]} 31. Nxe5 {[%clk 0:00:16]}  bxa2+ {[%clk 0:00:07]} 32. Bxa2 {[%clk 0:00:17]}  dxe5 {[%clk 0:00:06]} 33. Qb3 {[%clk 0:00:13]}  Qa6 {[%clk 0:00:03]} 34. Rf7 {[%clk 0:00:12]}  Bg4 {[%clk 0:00:02]} 35. Rdf1 {[%clk 0:00:09]}  Qe2 {[%clk 0:00:01]} 36. Ka1 {[%clk 0:00:06]}  Qxe4 {[%clk 0:00:01]} 37. Rxe7 {[%clk 0:00:06]} 1-0


[Site "https://www.chess.com"]

[Event "Titled Tuesday Blitz August 16 Late 2022"]
[White "Bogaudinov, Rushan"]
[Black "Danielyan, Vahe"]
[WhiteFideId "4129288"]
[BlackFideId "13304828"]
[WhiteElo "2040"]
[BlackElo "2421"]
[Result "1-0"]
[Round "04"]
[TimeControl "180+1"]
[Date "2022.08.18"]
[WhiteClock "0:00:00"]
[BlackClock "0:00:00"]

1. d4 {[%clk 0:00:00]}  d5 {[%clk 0:00:00]} 2. Nf3 {[%clk 0:00:00]}  Nf6 {[%clk 0:00:00]} 3. g3 {[%clk 0:00:00]}  Bg4 {[%clk 0:00:00]} 4. Bg2 {[%clk 0:00:00]}  e6 {[%clk 0:00:00]} 5. O-O {[%clk 0:00:00]}  Nbd7 {[%clk 0:00:00]} 6. b3 {[%clk 0:00:00]}  Bd6 {[%clk 0:00:00]} 7. Bb2 {[%clk 0:00:00]}  c6 {[%clk 0:00:00]} 8. Nbd2 {[%clk 0:00:00]}  h5 {[%clk 0:00:00]} 9. h3 {[%clk 0:00:00]}  Bxf3 {[%clk 0:00:00]} 10. Nxf3 {[%clk 0:00:00]}  Qe7 {[%clk 0:00:00]} 11. a3 {[%clk 0:00:00]}  O-O-O {[%clk 0:00:00]} 12. Ne5 {[%clk 0:00:00]}  g5 {[%clk 0:00:00]} 13. Qd2 {[%clk 0:00:00]}  h4 {[%clk 0:00:00]} 14. g4 {[%clk 0:00:00]}  Ne4 {[%clk 0:00:00]} 15. Qa5 {[%clk 0:00:00]}  Kb8 {[%clk 0:00:00]} 16. c4 {[%clk 0:00:00]}  f6 {[%clk 0:00:00]} 17. Nxd7+ {[%clk 0:00:00]}  Qxd7 {[%clk 0:00:00]} 18. cxd5 {[%clk 0:00:00]}  exd5 {[%clk 0:00:00]} 19. Bxe4 {[%clk 0:00:00]}  dxe4 {[%clk 0:00:00]} 20. Qf5 {[%clk 0:00:00]}  Qxf5 {[%clk 0:00:00]} 21. gxf5 {[%clk 0:00:00]}  Rhg8 {[%clk 0:00:00]} 22. f3 {[%clk 0:00:00]}  e3 {[%clk 0:00:00]} 23. Kg2 {[%clk 0:00:00]}  Bf4 {[%clk 0:00:00]} 24. Rac1 {[%clk 0:00:00]}  Rd5 {[%clk 0:00:00]} 25. Rc5 {[%clk 0:00:00]}  Rgd8 {[%clk 0:00:00]} 26. Rfc1 {[%clk 0:00:00]}  Kc7 {[%clk 0:00:00]} 27. b4 {[%clk 0:00:00]}  R8d6 {[%clk 0:00:00]} 28. Kf1 {[%clk 0:00:00]}  b6 {[%clk 0:00:00]} 29. Rxd5 {[%clk 0:00:00]}  Rxd5 {[%clk 0:00:00]} 30. a4 {[%clk 0:00:00]}  a6 {[%clk 0:00:00]} 31. Ke1 {[%clk 0:00:00]}  Rxf5 {[%clk 0:00:00]} 32. Kd1 {[%clk 0:00:00]}  Rd5 {[%clk 0:00:00]} 33. Kc2 {[%clk 0:00:00]}  Kd6 {[%clk 0:00:00]} 34. Kd3 {[%clk 0:00:00]}  f5 {[%clk 0:00:00]} 35. Ba3 {[%clk 0:00:00]}  Ke6 {[%clk 0:00:00]} 36. Rxc6+ {[%clk 0:00:00]}  Rd6 {[%clk 0:00:00]} 37. b5 {[%clk 0:00:00]}  Rxc6 {[%clk 0:00:00]} 38. bxc6 {[%clk 0:00:00]}  Kd5 {[%clk 0:00:00]} 39. c7 {[%clk 0:00:00]}  Bxc7 {[%clk 0:00:00]} 40. Kxe3 {[%clk 0:00:00]}  Kc4 {[%clk 0:00:00]} 41. Be7 {[%clk 0:00:00]}  Bf4+ {[%clk 0:00:00]} 42. Kf2 {[%clk 0:00:00]}  Kxd4 {[%clk 0:00:00]} 43. Bf6+ {[%clk 0:00:00]}  Kc4 {[%clk 0:00:00]} 44. e3 {[%clk 0:00:00]}  Bg3+ {[%clk 0:00:00]} 45. Ke2 {[%clk 0:00:00]}  Kb3 {[%clk 0:00:00]} 46. Bd4 {[%clk 0:00:00]}  Bc7 {[%clk 0:00:00]} 47. e4 {[%clk 0:00:00]}  fxe4 {[%clk 0:00:00]} 48. fxe4 {[%clk 0:00:00]}  Kxa4 {[%clk 0:00:00]} 49. e5 {[%clk 0:00:00]}  Kb5 {[%clk 0:00:00]} 50. Kd3 {[%clk 0:00:00]}  Kc6 {[%clk 0:00:00]} 51. Ke4 {[%clk 0:00:00]}  a5 {[%clk 0:00:00]} 52. Be3 {[%clk 0:00:00]}  a4 {[%clk 0:00:00]} 53. Bxg5 {[%clk 0:00:00]}  b5 {[%clk 0:00:00]} 54. Bxh4 {[%clk 0:00:00]}  b4 {[%clk 0:00:00]} 55. Bf6 {[%clk 0:00:00]} 1-0


[Site "https://www.chess.com"]

[Event "Titled Tuesday Blitz August 16 Late 2022"]
[White "Chernomordik, Pavel"]
[Black "Turayev, Shahruh"]
[WhiteFideId "2804530"]
[BlackFideId "14003856"]
[WhiteElo "2217"]
[BlackElo "2217"]
[Result "1-0"]
[Round "04"]
[TimeControl "180+1"]
[Date "2022.08.18"]
[WhiteClock "0:00:00"]
[BlackClock "0:00:00"]

1. e4 {[%clk 0:00:00]}  d5 {[%clk 0:00:00]} 2. exd5 {[%clk 0:00:00]}  Qxd5 {[%clk 0:00:00]} 3. Nc3 {[%clk 0:00:00]}  Qa5 {[%clk 0:00:00]} 4. Bc4 {[%clk 0:00:00]}  Nf6 {[%clk 0:00:00]} 5. Nf3 {[%clk 0:00:00]}  Nc6 {[%clk 0:00:00]} 6. Qe2 {[%clk 0:00:00]}  Bg4 {[%clk 0:00:00]} 7. Bb5 {[%clk 0:00:00]}  e6 {[%clk 0:00:00]} 8. h3 {[%clk 0:00:00]}  Bh5 {[%clk 0:00:00]} 9. g4 {[%clk 0:00:00]}  Bg6 {[%clk 0:00:00]} 10. Ne5 {[%clk 0:00:00]}  a6 {[%clk 0:00:00]} 11. Nxc6 {[%clk 0:00:00]}  Qb6 {[%clk 0:00:00]} 12. Ne5+ {[%clk 0:00:00]}  axb5 {[%clk 0:00:00]} 13. Qxb5+ {[%clk 0:00:00]}  Qxb5 {[%clk 0:00:00]} 14. Nxb5 {[%clk 0:00:00]}  Kd8 {[%clk 0:00:00]} 15. d3 {[%clk 0:00:00]}  c6 {[%clk 0:00:00]} 16. Nc3 {[%clk 0:00:00]}  Bd6 {[%clk 0:00:00]} 17. f4 {[%clk 0:00:00]}  Nd7 {[%clk 0:00:00]} 18. Nxg6 {[%clk 0:00:00]}  hxg6 {[%clk 0:00:00]} 19. Ne4 {[%clk 0:00:00]}  Be7 {[%clk 0:00:00]} 20. Be3 {[%clk 0:00:00]}  Nf6 {[%clk 0:00:00]} 21. Nxf6 {[%clk 0:00:00]}  Bxf6 {[%clk 0:00:00]} 22. c3 {[%clk 0:00:00]}  Kd7 {[%clk 0:00:00]} 23. Ke2 {[%clk 0:00:00]}  b5 {[%clk 0:00:00]} 24. Bc5 {[%clk 0:00:00]}  Be7 {[%clk 0:00:00]} 25. Bd4 {[%clk 0:00:00]}  Rh7 {[%clk 0:00:00]} 26. Kf3 {[%clk 0:00:00]}  Bd6 {[%clk 0:00:00]} 27. Be5 {[%clk 0:00:00]}  Bxe5 {[%clk 0:00:00]} 28. fxe5 {[%clk 0:00:00]}  f6 {[%clk 0:00:00]} 29. d4 {[%clk 0:00:00]}  f5 {[%clk 0:00:00]} 30. h4 {[%clk 0:00:00]}  Rah8 {[%clk 0:00:00]} 31. Kg3 {[%clk 0:00:00]}  g5 {[%clk 0:00:00]} 32. h5 {[%clk 0:00:00]}  f4+ {[%clk 0:00:00]} 33. Kf3 {[%clk 0:00:00]}  Ra8 {[%clk 0:00:00]} 34. a3 {[%clk 0:00:00]}  Ke7 {[%clk 0:00:00]} 35. Rh2 {[%clk 0:00:00]}  Rah8 {[%clk 0:00:00]} 36. Rah1 {[%clk 0:00:00]}  g6 {[%clk 0:00:00]} 37. Ke4 {[%clk 0:00:00]}  gxh5 {[%clk 0:00:00]} 38. Rxh5 {[%clk 0:00:00]}  Rxh5 {[%clk 0:00:00]} 39. Rxh5 {[%clk 0:00:00]}  Rxh5 {[%clk 0:00:00]} 40. gxh5 {[%clk 0:00:00]}  Kf7 {[%clk 0:00:00]} 41. b3 {[%clk 0:00:00]}  Kg7 {[%clk 0:00:00]} 42. a4 {[%clk 0:00:00]}  bxa4 {[%clk 0:00:00]} 43. bxa4 {[%clk 0:00:00]}  Kh6 {[%clk 0:00:00]} 44. a5 {[%clk 0:00:00]}  Kxh5 {[%clk 0:00:00]} 45. a6 {[%clk 0:00:00]}  Kg4 {[%clk 0:00:00]} 46. a7 {[%clk 0:00:00]}  f3 {[%clk 0:00:00]} 47. a8=Q {[%clk 0:00:00]}  f2 {[%clk 0:00:00]} 48. Qf8 {[%clk 0:00:00]}  Kg3 {[%clk 0:00:00]} 49. Qf3+ {[%clk 0:00:00]}  Kh4 {[%clk 0:00:00]} 50. Qxf2+ {[%clk 0:00:00]}  Kh3 {[%clk 0:00:00]} 51. Kf3 {[%clk 0:00:00]}  g4+ {[%clk 0:00:00]} 52. Kf4 {[%clk 0:00:00]}  g3 {[%clk 0:00:00]} 53. Qxg3# {[%clk 0:00:00]} 1-0


[Site "https://www.chess.com"]

[Event "Titled Tuesday Blitz August 16 Late 2022"]
[White "Diem, Thomas"]
[Black "Bongo Akanga Ndjila, Barthelemy"]
[WhiteFideId "30937841"]
[BlackFideId "10609431"]
[WhiteElo "1998"]
[BlackElo "1768"]
[Result "1-0"]
[Round "04"]
[TimeControl "180+1"]
[Date "2022.08.18"]
[WhiteClock "0:00:00"]
[BlackClock "0:00:00"]

1. c4 {[%clk 0:00:00]}  e5 {[%clk 0:00:00]} 2. Nc3 {[%clk 0:00:00]}  Nf6 {[%clk 0:00:00]} 3. Nf3 {[%clk 0:00:00]}  Nc6 {[%clk 0:00:00]} 4. d4 {[%clk 0:00:00]}  exd4 {[%clk 0:00:00]} 5. Nxd4 {[%clk 0:00:00]}  Bc5 {[%clk 0:00:00]} 6. Nxc6 {[%clk 0:00:00]}  bxc6 {[%clk 0:00:00]} 7. e3 {[%clk 0:00:00]}  O-O {[%clk 0:00:00]} 8. Be2 {[%clk 0:00:00]}  Re8 {[%clk 0:00:00]} 9. O-O {[%clk 0:00:00]}  d6 {[%clk 0:00:00]} 10. b3 {[%clk 0:00:00]}  Bf5 {[%clk 0:00:00]} 11. Bb2 {[%clk 0:00:00]}  d5 {[%clk 0:00:00]} 12. cxd5 {[%clk 0:00:00]}  cxd5 {[%clk 0:00:00]} 13. Rc1 {[%clk 0:00:00]}  Bd6 {[%clk 0:00:00]} 14. Nb5 {[%clk 0:00:00]}  Be5 {[%clk 0:00:00]} 15. Bxe5 {[%clk 0:00:00]}  Rxe5 {[%clk 0:00:00]} 16. Nxc7 {[%clk 0:00:00]}  Rc8 {[%clk 0:00:00]} 17. Nb5 {[%clk 0:00:00]}  Rxc1 {[%clk 0:00:00]} 18. Qxc1 {[%clk 0:00:00]}  Re7 {[%clk 0:00:00]} 19. Nd4 {[%clk 0:00:00]}  Be4 {[%clk 0:00:00]} 20. Nc6 {[%clk 0:00:00]}  Qd7 {[%clk 0:00:00]} 21. Nxe7+ {[%clk 0:00:00]} 1-0


[Site "https://www.chess.com"]

[Event "Titled Tuesday Blitz August 16 Late 2022"]
[White "Dubov, Daniil"]
[Black "Romero Ruscalleda, Josep"]
[WhiteFideId "24126055"]
[BlackFideId "2231859"]
[WhiteElo "2791"]
[BlackElo "2193"]
[Result "1-0"]
[Round "04"]
[TimeControl "180+1"]
[Date "2022.08.18"]
[WhiteClock "0:00:00"]
[BlackClock "0:00:00"]

1. e4 {[%clk 0:00:00]}  g6 {[%clk 0:00:00]} 2. h4 {[%clk 0:00:00]}  h5 {[%clk 0:00:00]} 3. Nc3 {[%clk 0:00:00]}  Bg7 {[%clk 0:00:00]} 4. Bc4 {[%clk 0:00:00]}  d6 {[%clk 0:00:00]} 5. d3 {[%clk 0:00:00]}  Nc6 {[%clk 0:00:00]} 6. Nh3 {[%clk 0:00:00]}  Ne5 {[%clk 0:00:00]} 7. Ng5 {[%clk 0:00:00]}  Nxc4 {[%clk 0:00:00]} 8. dxc4 {[%clk 0:00:00]}  e6 {[%clk 0:00:00]} 9. Be3 {[%clk 0:00:00]}  Qe7 {[%clk 0:00:00]} 10. Bd4 {[%clk 0:00:00]}  Nf6 {[%clk 0:00:00]} 11. Qf3 {[%clk 0:00:00]}  e5 {[%clk 0:00:00]} 12. Be3 {[%clk 0:00:00]}  Bg4 {[%clk 0:00:00]} 13. Qg3 {[%clk 0:00:00]}  c6 {[%clk 0:00:00]} 14. f3 {[%clk 0:00:00]}  Be6 {[%clk 0:00:00]} 15. c5 {[%clk 0:00:00]}  O-O-O {[%clk 0:00:00]} 16. O-O-O {[%clk 0:00:00]}  Bc4 {[%clk 0:00:00]} 17. cxd6 {[%clk 0:00:00]}  Rxd6 {[%clk 0:00:00]} 18. Rxd6 {[%clk 0:00:00]}  Qxd6 {[%clk 0:00:00]} 19. Rd1 {[%clk 0:00:00]}  Qe7 {[%clk 0:00:00]} 20. Bxa7 {[%clk 0:00:00]}  Nd7 {[%clk 0:00:00]} 21. Qf2 {[%clk 0:00:00]}  f6 {[%clk 0:00:00]} 22. Nh3 {[%clk 0:00:00]}  Qb4 {[%clk 0:00:00]} 23. a3 {[%clk 0:00:00]}  Qa5 {[%clk 0:00:00]} 24. Rxd7 {[%clk 0:00:00]}  Kxd7 {[%clk 0:00:00]} 25. Bb6 {[%clk 0:00:00]}  Qa8 {[%clk 0:00:00]} 26. Qd2+ {[%clk 0:00:00]}  Ke6 {[%clk 0:00:00]} 27. Bc7 {[%clk 0:00:00]}  Bf8 {[%clk 0:00:00]} 28. f4 {[%clk 0:00:00]}  Qc8 {[%clk 0:00:00]} 29. f5+ {[%clk 0:00:00]}  gxf5 {[%clk 0:00:00]} 30. exf5+ {[%clk 0:00:00]}  Kf7 {[%clk 0:00:00]} 31. Bxe5 {[%clk 0:00:00]}  Qxf5 {[%clk 0:00:00]} 32. Bf4 {[%clk 0:00:00]}  Be7 {[%clk 0:00:00]} 33. Qd4 {[%clk 0:00:00]}  Qc5 {[%clk 0:00:00]} 34. Qe4 {[%clk 0:00:00]}  Be6 {[%clk 0:00:00]} 35. Qf3 {[%clk 0:00:00]}  Bg4 {[%clk 0:00:00]} 36. Qd3 {[%clk 0:00:00]}  Qf5 {[%clk 0:00:00]} 37. Qc4+ {[%clk 0:00:00]}  Qe6 {[%clk 0:00:00]} 38. Qf1 {[%clk 0:00:00]}  Rd8 {[%clk 0:00:00]} 39. Bc7 {[%clk 0:00:00]}  Qe3+ {[%clk 0:00:00]} 40. Kb1 {[%clk 0:00:00]}  Rd7 {[%clk 0:00:00]} 41. Bf4 {[%clk 0:00:00]}  Qb6 {[%clk 0:00:00]} 42. Bc1 {[%clk 0:00:00]}  Qd4 {[%clk 0:00:00]} 43. Nf4 {[%clk 0:00:00]}  b5 {[%clk 0:00:00]} 44. Nd3 {[%clk 0:00:00]}  b4 {[%clk 0:00:00]} 45. axb4 {[%clk 0:00:00]}  Bxb4 {[%clk 0:00:00]} 46. Ne2 {[%clk 0:00:00]}  Bxe2 {[%clk 0:00:00]} 47. Qxe2 {[%clk 0:00:00]}  Be7 {[%clk 0:00:00]} 48. Qxh5+ {[%clk 0:00:00]}  Kf8 {[%clk 0:00:00]} 49. Qg6 {[%clk 0:00:00]}  c5 {[%clk 0:00:00]} 50. Bh6# {[%clk 0:00:00]} 1-0


[Site "https://www.chess.com"]

[Event "Titled Tuesday Blitz August 16 Late 2022"]
[White "Fernandez Hernandez, Gerardo"]
[Black "Fernandez Siles, Luis"]
[WhiteFideId "2207400"]
[BlackFideId "2209420"]
[WhiteElo "2169"]
[BlackElo "2211"]
[Result "1-0"]
[Round "04"]
[TimeControl "180+1"]
[Date "2022.08.18"]
[WhiteClock "0:00:00"]
[BlackClock "0:00:00"]

1. e4 {[%clk 0:00:00]}  c5 {[%clk 0:00:00]} 2. d3 {[%clk 0:00:00]}  d5 {[%clk 0:00:00]} 3. Nd2 {[%clk 0:00:00]}  Nf6 {[%clk 0:00:00]} 4. Ngf3 {[%clk 0:00:00]}  Nc6 {[%clk 0:00:00]} 5. g3 {[%clk 0:00:00]}  e5 {[%clk 0:00:00]} 6. Bg2 {[%clk 0:00:00]}  Be7 {[%clk 0:00:00]} 7. O-O {[%clk 0:00:00]}  O-O {[%clk 0:00:00]} 8. exd5 {[%clk 0:00:00]}  Nxd5 {[%clk 0:00:00]} 9. Nc4 {[%clk 0:00:00]}  f6 {[%clk 0:00:00]} 10. a4 {[%clk 0:00:00]}  Bg4 {[%clk 0:00:00]} 11. h3 {[%clk 0:00:00]}  Bh5 {[%clk 0:00:00]} 12. c3 {[%clk 0:00:00]}  Qd7 {[%clk 0:00:00]} 13. a5 {[%clk 0:00:00]}  Rad8 {[%clk 0:00:00]} 14. Qa4 {[%clk 0:00:00]}  Kh8 {[%clk 0:00:00]} 15. Re1 {[%clk 0:00:00]}  Qf5 {[%clk 0:00:00]} 16. g4 {[%clk 0:00:00]}  Bxg4 {[%clk 0:00:00]} 17. hxg4 {[%clk 0:00:00]}  Qxg4 {[%clk 0:00:00]} 18. Ne3 {[%clk 0:00:00]}  Qg6 {[%clk 0:00:00]} 19. Nh4 {[%clk 0:00:00]}  Qxd3 {[%clk 0:00:00]} 20. Rd1 {[%clk 0:00:00]} 1-0


[Site "https://www.chess.com"]